bitfinex/quotes_BTCUSD_20250423
["timestamp","ask_amount","ask_price","bid_price","bid_amount"]
[1745366917157,0.15710305,93517.0,93503.0,0.00734097]
[1745366918492,0.16010305,93517.0,93503.0,0.00734097]
[1745366918735,0.0518,93517.0,93507.0,0.12833263]
[1745366918943,0.003,93517.0,93506.0,0.00213867]
[1745366919142,0.003,93517.0,93507.0,0.00734097]
[1745366919362,0.003,93517.0,93508.0,0.00213855]
[1745366919679,0.00131888,93519.0,93509.0,0.01803512]
[1745366919861,0.00131888,93519.0,93511.0,0.01069392]
[1745366920040,0.003,93517.0,93510.0,0.13046582]
[1745366920244,0.003,93517.0,93511.0,0.00734097]
[1745366920437,0.00131888,93519.0,93511.0,0.00734097]
[1745366920636,0.00131888,93519.0,93511.0,0.00947952]
[1745366920956,0.00331888,93519.0,93511.0,0.00947952]
[1745366921115,0.00331888,93519.0,93512.0,0.00734097]
[1745366921323,0.00131888,93519.0,93512.0,0.00734097]
[1745366921937,0.00131888,93519.0,93509.0,0.00734097]
[1745366922142,0.00531888,93519.0,93510.0,0.00213855]
[1745366922523,0.00631888,93519.0,93510.0,0.00213855]
[1745366922724,0.00631888,93519.0,93511.0,0.00734097]
[1745366923357,0.00131888,93519.0,93511.0,0.00734097]
[1745366923561,0.00131888,93519.0,93506.0,0.0106945]
[1745366923783,0.00531888,93519.0,93505.0,0.00734097]
[1745366923993,0.00531888,93519.0,93505.0,0.01803558]
[1745366924190,0.00231888,93519.0,93506.0,0.0106945]
[1745366924408,0.00431888,93519.0,93505.0,0.01803558]
[1745366924602,0.00431888,93519.0,93505.0,0.00734097]
[1745366924828,0.00531888,93519.0,93505.0,0.1463705]
[1745366925010,0.00331888,93519.0,93505.0,0.00734097]
[1745366925215,0.00331888,93519.0,93505.0,0.01903558]
[1745366925579,0.00331888,93519.0,93509.0,0.12832926]
[1745366925792,0.00331888,93519.0,93510.0,0.00213855]
[1745366925994,0.00131888,93519.0,93510.0,0.00213855]
[1745366926146,0.00131888,93519.0,93507.0,0.00213854]
[1745366926378,0.00131888,93519.0,93511.0,0.00734097]
[1745366926752,0.00331888,93519.0,93511.0,0.00734097]
[1745366927187,0.00131888,93519.0,93512.0,0.00734097]
[1745366927528,0.00431888,93519.0,93512.0,0.00734097]
[1745366927950,0.00431888,93519.0,93513.0,0.00734097]
[1745366928158,0.10830305,93518.0,93513.0,0.00734097]
[1745366928730,0.0464,93517.0,93503.0,0.00734097]
[1745366928918,0.10830305,93516.0,93503.0,0.00734097]
[1745366929366,0.10830305,93516.0,93504.0,0.00734097]
[1745366929900,0.10830305,93516.0,93503.0,0.00734097]
[1745366930356,0.10830305,93516.0,93503.0,0.00834097]
[1745366930531,0.10930305,93516.0,93503.0,0.00834097]
[1745366930903,0.10930305,93516.0,93504.0,0.00734097]
[1745366931138,0.0467,93515.0,93504.0,0.00734097]
[1745366931623,0.0467,93515.0,93493.0,0.01069598]
[1745366932026,0.0467,93515.0,93492.0,0.01454085]
[1745366932487,0.0467,93515.0,93493.0,0.00734097]
[1745366932711,0.0467,93515.0,93503.0,0.001]
[1745366932910,0.0467,93515.0,93493.0,0.00734097]
[1745366933183,0.0467,93515.0,93504.0,0.00734097]
[1745366933960,0.0467,93515.0,93496.0,0.00734097]
[1745366934499,0.10830305,93514.0,93496.0,0.00734097]
[1745366934876,0.10830305,93514.0,93494.0,0.00734097]
[1745366935497,0.01069381,93512.0,93494.0,0.00734097]
[1745366935699,0.10830305,93511.0,93494.0,0.00734097]
[1745366935879,0.10830305,93511.0,93496.0,0.001]
[1745366936237,0.10830305,93511.0,93497.0,0.00734097]
[1745366937004,0.11030305,93511.0,93495.0,0.00734097]
[1745366937414,0.10930305,93511.0,93495.0,0.00734097]
[1745366937613,0.11130305,93511.0,93495.0,0.00734097]
[1745366937784,0.11130305,93511.0,93487.0,0.01069667]
[1745366937983,0.11130305,93511.0,93488.0,0.00213906]
[1745366938577,0.11030305,93511.0,93489.0,0.00734097]
[1745366939054,0.10930305,93511.0,93489.0,0.00734097]
[1745366939228,0.11030305,93511.0,93490.0,0.00734097]
[1745366939640,0.10930305,93511.0,93490.0,0.00734097]
[1745366939855,0.10830305,93511.0,93490.0,0.00734097]
[1745366940080,0.01069427,93508.0,93490.0,0.00734097]
[1745366940278,0.01069495,93502.0,93490.0,0.00734097]
[1745366940479,0.26070451,93500.0,93490.0,0.00734097]
[1745366940680,0.0497,93492.0,93490.0,0.00834097]
[1745366940882,0.15510305,93491.0,93490.0,0.003]
[1745366941082,0.3104495,93480.0,93479.0,0.00734097]
[1745366941304,0.41875255,93480.0,93479.0,0.00734097]
[1745366941450,0.0468,93470.0,93454.0,0.000425]
[1745366941849,0.0497,93464.0,93454.0,0.02909545]
[1745366942129,0.10830305,93463.0,93454.0,0.02659545]
[1745366942351,0.10730305,93463.0,93455.0,0.00738102]
[1745366942937,0.10630305,93463.0,93454.0,0.00014054]
[1745366943140,0.10630305,93463.0,93454.0,0.00114054]
[1745366943494,0.10830305,93463.0,93454.0,0.00014054]
[1745366943911,0.11130305,93463.0,93455.0,0.001]
[1745366944109,0.11230305,93463.0,93455.0,0.001]
[1745366945238,0.10630305,93463.0,93454.0,0.02855993]
[1745366945449,0.0965,93455.0,93454.0,0.00114054]
[1745366945666,0.21400903,93454.0,93452.0,0.000425]
[1745366945887,0.21400903,93454.0,93432.0,0.000425]
[1745366945888,0.26371361,93452.0,93432.0,0.000425]
[1745366946076,0.0965,93438.0,93432.0,0.02918384]
[1745366946258,0.10830305,93437.0,93432.0,0.00054495]
[1745366946470,0.0955,93438.0,93432.0,0.00054495]
[1745366946471,0.21405484,93434.0,93432.0,0.00054495]
[1745366946680,0.15510305,93433.0,93432.0,0.00054495]
[1745366946906,0.15510305,93433.0,93431.0,0.001]
[1745366946907,0.21305942,93432.0,93431.0,0.001]
[1745366947114,0.32136247,93432.0,93431.0,0.001]
[1745366947319,0.10830305,93432.0,93431.0,0.001]
[1745366948160,0.32236247,93432.0,93431.0,0.001]
[1745366948406,0.10830305,93432.0,93431.0,0.001]
[1745366948614,0.10730305,93432.0,93431.0,0.001]
[1745366949239,0.15700305,93432.0,93431.0,0.001]
[1745366949443,0.16700305,93432.0,93431.0,0.002]
[1745366949941,0.16300305,93432.0,93431.0,0.001]
[1745366950460,0.01070354,93427.0,93424.0,0.000321]
[1745366950680,0.42669622,93426.0,93424.0,0.000321]
[1745366951731,0.21262305,93426.0,93424.0,0.000321]
[1745366952535,0.22362305,93426.0,93424.0,0.000321]
[1745366952875,0.22862305,93426.0,93424.0,0.000321]
[1745366954516,0.12430305,93426.0,93424.0,0.000321]
[1745366955755,0.03300831,93425.0,93424.0,0.000321]
[1745366955962,0.32237851,93425.0,93424.0,0.000321]
[1745366956160,0.10830305,93425.0,93424.0,0.000321]
[1745366957002,0.11330305,93425.0,93424.0,0.000321]
[1745366957757,0.12430305,93425.0,93424.0,0.001321]
[1745366960842,0.16960305,93425.0,93424.0,0.001321]
[1745366961831,0.16460305,93425.0,93424.0,0.000321]
[1745366962079,0.15960305,93425.0,93424.0,0.000321]
[1745366962791,0.17160305,93425.0,93424.0,0.000321]
[1745366963950,0.3048915,93418.0,93417.0,0.0004253]
[1745366964163,0.41319455,93418.0,93417.0,0.0004253]
[1745366964575,0.41319455,93418.0,93412.0,0.0004252]
[1745366964576,0.21410296,93413.0,93412.0,0.0004252]
[1745366964753,0.41320601,93413.0,93412.0,0.0004252]
[1745366965642,0.42820601,93413.0,93412.0,0.0014252]
[1745366965825,0.43420601,93413.0,93412.0,0.0014252]
[1745366966030,0.43420601,93413.0,93398.0,0.0004249]
[1745366966031,0.25942359,93404.0,93398.0,0.0004249]
[1745366966239,0.47204664,93404.0,93403.0,0.00056554]
[1745366966466,0.15360305,93404.0,93403.0,0.00056554]
[1745366966670,0.21262305,93404.0,93403.0,0.00056554]
[1745366967649,0.21162305,93404.0,93403.0,0.00056554]
[1745366968052,0.22462305,93404.0,93403.0,0.00056554]
[1745366968460,0.11732,93404.0,93403.0,0.00056554]
[1745366968662,0.013,93404.0,93403.0,0.00056554]
[1745366969650,0.013,93404.0,93403.0,0.00793443]
[1745366969862,0.002,93404.0,93403.0,0.00793443]
[1745366970060,0.01,93404.0,93403.0,0.00793443]
[1745366970351,0.008,93404.0,93403.0,0.00056554]
[1745366970533,0.01,93404.0,93403.0,0.00056554]
[1745366974740,0.01,93404.0,93403.0,0.00796032]
[1745366975400,0.01,93404.0,93403.0,0.00056554]
[1745366975610,0.11830305,93404.0,93403.0,0.00056554]
[1745366977295,0.16510305,93404.0,93403.0,0.00056554]
[1745366979257,0.16610305,93404.0,93403.0,0.00056554]
[1745366980095,0.15810305,93404.0,93403.0,0.00056554]
[1745366980343,0.16710305,93404.0,93403.0,0.00056554]
[1745366980784,0.62890305,93404.0,93403.0,0.00056554]
[1745366982314,0.62790305,93404.0,93403.0,0.00056554]
[1745366982673,0.62390305,93404.0,93403.0,0.00056554]
[1745366982872,0.62690305,93404.0,93403.0,0.00056554]
[1745366983081,0.57010305,93404.0,93403.0,0.00056554]
[1745366983457,0.53630305,93404.0,93403.0,0.00056554]
[1745366983655,0.53830305,93404.0,93403.0,0.00056554]
[1745366983911,0.52530305,93404.0,93403.0,0.00056554]
[1745366984107,0.53730305,93404.0,93403.0,0.00056554]
[1745366986495,0.12530305,93404.0,93403.0,0.00056554]
[1745366986736,0.01070698,93397.0,93369.0,0.01454085]
[1745366986942,0.10830305,93396.0,93369.0,0.01454085]
[1745366987156,0.01070755,93392.0,93371.0,0.01454085]
[1745366987362,0.10830305,93391.0,93370.0,0.00740616]
[1745366987553,0.10830305,93391.0,93372.0,0.00740616]
[1745366987943,0.01070916,93378.0,93372.0,0.03286208]
[1745366988079,0.11901232,93377.0,93369.0,0.008]
[1745366988339,0.01070961,93374.0,93369.0,0.008]
[1745366988535,0.10830305,93373.0,93369.0,0.008]
[1745366988787,0.10830305,93373.0,93369.0,0.03282396]
[1745366988991,0.10830305,93373.0,93369.0,0.007]
[1745366989413,0.10830305,93373.0,93365.0,0.0004254]
[1745366989583,0.10830305,93373.0,93365.0,0.00089451]
[1745366989789,0.10830305,93373.0,93372.0,0.006]
[1745366989990,0.11430305,93373.0,93365.0,0.00089451]
[1745366990188,0.11430305,93373.0,93365.0,0.02589582]
[1745366990393,0.11430305,93373.0,93369.0,0.002]
[1745366990595,0.10830305,93373.0,93365.0,0.02589582]
[1745366990843,0.11330305,93373.0,93365.0,0.02589582]
[1745366991169,0.11330305,93373.0,93372.0,0.001]
[1745366991370,0.32749773,93373.0,93372.0,0.001]
[1745366991595,0.15850305,93373.0,93372.0,0.001]
[1745366991819,0.32749773,93373.0,93372.0,0.001]
[1745366992029,0.32249773,93373.0,93372.0,0.001]
[1745366992248,0.41338823,93373.0,93372.0,0.001]
[1745366992455,0.32949773,93373.0,93372.0,0.001]
[1745366992656,0.01070996,93371.0,93365.0,0.00089451]
[1745366992870,0.11901312,93370.0,93365.0,0.00089451]
[1745366993546,0.11901312,93370.0,93365.0,0.00389451]
[1745366993763,0.0107103,93368.0,93365.0,0.00089451]
[1745366993972,0.10830305,93367.0,93365.0,0.00189451]
[1745366995063,0.007,93371.0,93365.0,0.00189451]
[1745366995640,0.01070916,93378.0,93365.0,0.00089451]
[1745366995878,0.008,93370.0,93365.0,0.00189451]
[1745366996054,0.10830305,93369.0,93365.0,0.00189451]
[1745366996259,0.10830305,93369.0,93365.0,0.00089451]
[1745366996482,0.10830305,93369.0,93365.0,0.00189451]
[1745366996699,0.01070893,93380.0,93365.0,0.00089451]
[1745366996874,0.008,93371.0,93365.0,0.00089451]
[1745366997092,0.008,93371.0,93365.0,0.00189451]
[1745366997301,0.11901209,93379.0,93365.0,0.00089451]
[1745366997498,0.008,93369.0,93365.0,0.00089451]
[1745366997709,0.008,93369.0,93365.0,0.00189451]
[1745366998898,0.01070961,93374.0,93365.0,0.00189451]
[1745366999117,0.10830305,93368.0,93365.0,0.00189451]
[1745366999332,0.10830305,93368.0,93365.0,0.00089451]
[1745366999720,0.10830305,93368.0,93365.0,0.00189451]
[1745367000054,0.007,93369.0,93365.0,0.00089451]
[1745367000273,0.01070893,93380.0,93365.0,0.00189451]
[1745367000491,0.11901209,93379.0,93365.0,0.00189451]
[1745367000705,0.007,93368.0,93365.0,0.00189451]
[1745367001192,0.007,93368.0,93365.0,0.00089451]
[1745367001415,0.007,93368.0,93365.0,0.00189451]
[1745367002059,0.10830305,93379.0,93365.0,0.00189451]
[1745367002283,0.10830305,93379.0,93366.0,0.00654636]
[1745367002512,0.008,93380.0,93367.0,0.00214196]
[1745367002697,0.008,93380.0,93367.0,0.0486]
[1745367002921,0.10432,93397.0,93367.0,0.05074177]
[1745367003126,0.008,93379.0,93370.0,0.01071007]
[1745367003333,0.008,93379.0,93371.0,0.01285161]
[1745367003536,0.008,93379.0,93372.0,0.00214167]
[1745367003763,0.10830305,93396.0,93372.0,0.00214167]
[1745367003961,0.005,93380.0,93371.0,0.00741356]
[1745367004177,0.005,93380.0,93372.0,0.00741356]
[1745367004382,0.005,93380.0,93372.0,0.01417541]
[1745367004594,0.005,93380.0,93372.0,0.00741356]
[1745367005231,0.001,93380.0,93372.0,0.00741356]
[1745367005616,0.006,93379.0,93372.0,0.00741356]
[1745367005768,0.006,93379.0,93373.0,0.00741356]
[1745367005978,0.10830305,93396.0,93374.0,0.00214167]
[1745367006203,0.007,93380.0,93373.0,0.00741356]
[1745367006379,0.007,93380.0,93374.0,0.0067724]
[1745367006589,0.007,93380.0,93375.0,0.00741356]
[1745367006778,0.10830305,93396.0,93375.0,0.00741356]
[1745367006983,0.007,93379.0,93375.0,0.00741356]
[1745367008612,0.01070778,93390.0,93375.0,0.00741356]
[1745367008855,0.007,93380.0,93366.0,0.00741356]
[1745367009066,0.01070938,93376.0,93352.0,0.01454085]
[1745367009275,0.11901209,93379.0,93352.0,0.01454085]
[1745367009276,0.10830305,93379.0,93352.0,0.01454085]
[1745367009490,0.10830305,93379.0,93356.0,0.032113]
[1745367009697,0.11630305,93379.0,93356.0,0.032113]
[1745367010118,0.10830305,93379.0,93366.0,0.002]
[1745367010328,0.10930305,93379.0,93357.0,0.00214196]
[1745367011049,0.11030305,93379.0,93357.0,0.00214196]
[1745367011276,0.11030305,93379.0,93358.0,0.01130611]
[1745367011621,0.10930305,93379.0,93358.0,0.01130611]
[1745367012003,0.11030305,93379.0,93358.0,0.01130611]
[1745367012457,0.10930305,93379.0,93358.0,0.01130611]
[1745367012860,0.11030305,93379.0,93358.0,0.01530611]
[1745367013107,0.11230305,93379.0,93359.0,0.01209293]
[1745367014568,0.004,93379.0,93366.0,0.16065802]
[1745367014777,0.002,93379.0,93367.0,0.00214178]
[1745367014972,0.005,93379.0,93367.0,0.00214178]
[1745367015265,0.005,93379.0,93361.0,0.01285296]
[1745367015480,0.005,93379.0,93362.0,0.01130611]
[1745367015481,0.002,93379.0,93362.0,0.01130611]
[1745367015662,0.01070778,93390.0,93363.0,0.00214185]
[1745367015992,0.006,93379.0,93363.0,0.00214185]
[1745367016198,0.001,93379.0,93366.0,0.01071053]
[1745367016404,0.001,93379.0,93367.0,0.01209293]
[1745367016613,0.005,93379.0,93367.0,0.01209293]
[1745367016819,0.004,93379.0,93367.0,0.01209293]
[1745367017249,0.004,93379.0,93364.0,0.01454085]
[1745367017461,0.003,93379.0,93364.0,0.01454085]
[1745367017606,0.10830305,93389.0,93367.0,0.003]
[1745367018021,0.005,93379.0,93367.0,0.003]
[1745367018452,0.10830305,93389.0,93367.0,0.003]
[1745367018765,0.11330305,93389.0,93363.0,0.02525173]
[1745367018975,0.11330305,93389.0,93358.0,0.09609429]
[1745367019186,0.10830305,93389.0,93367.0,0.003]
[1745367019544,0.005,93379.0,93367.0,0.003]
[1745367019752,0.005,93379.0,93360.0,0.01071122]
[1745367020363,0.005,93379.0,93361.0,0.01071111]
[1745367020568,0.005,93379.0,93360.0,0.01071122]
[1745367020836,0.005,93379.0,93360.0,0.16066681]
[1745367021059,0.005,93379.0,93367.0,0.003]
[1745367021276,0.005,93379.0,93368.0,0.00214181]
[1745367021488,0.10930305,93389.0,93368.0,0.00214181]
[1745367021702,0.10930305,93389.0,93367.0,0.003]
[1745367021883,0.11430305,93389.0,93369.0,0.00742772]
[1745367022285,0.10830305,93389.0,93369.0,0.00742772]
[1745367022489,0.001,93379.0,93369.0,0.00742772]
[1745367022731,0.001,93379.0,93370.0,0.00742772]
[1745367023319,0.10830305,93389.0,93370.0,0.00742772]
[1745367023522,0.10830305,93389.0,93371.0,0.00742772]
[1745367024100,0.10830305,93389.0,93363.0,0.01071088]
[1745367024101,0.10830305,93389.0,93372.0,0.00742772]
[1745367024281,0.11430305,93389.0,93372.0,0.00742772]
[1745367024686,0.10830305,93389.0,93372.0,0.00742772]
[1745367024889,0.10830305,93389.0,93373.0,0.00742772]
[1745367025135,0.11430305,93389.0,93373.0,0.00742772]
[1745367025495,0.10830305,93389.0,93374.0,0.00742772]
[1745367025947,0.11430305,93389.0,93374.0,0.00742772]
[1745367026463,0.11430305,93389.0,93375.0,0.00742772]
[1745367027114,0.11430305,93389.0,93376.0,0.00742772]
[1745367027559,0.00014034,93390.0,93378.0,0.01070916]
[1745367027783,0.007,93389.0,93383.0,0.01070858]
[1745367028003,0.007,93389.0,93384.0,0.00214136]
[1745367028212,0.007,93389.0,93386.0,0.01070824]
[1745367028452,0.00014034,93390.0,93387.0,0.0095691]
[1745367028659,0.008,93389.0,93388.0,0.15205351]
[1745367029111,0.008,93389.0,93388.0,0.17502208]
[1745367029324,0.0008514,93417.0,93399.0,0.01070675]
[1745367029509,0.10915445,93417.0,93400.0,0.15203401]
[1745367029815,0.10962318,93417.0,93402.0,0.14988872]
[1745367030236,0.10962318,93417.0,93400.0,0.00742772]
[1745367030484,0.10962318,93417.0,93403.0,0.00742772]
[1745367030819,0.10962318,93417.0,93404.0,0.00742772]
[1745367031027,0.00132013,93417.0,93404.0,0.00742772]
[1745367031233,0.00832013,93417.0,93404.0,0.00742772]
[1745367031455,0.00832013,93417.0,93410.0,0.14987688]
[1745367031666,0.00832013,93417.0,93414.0,0.01070503]
[1745367031869,0.00832013,93417.0,93416.0,0.14986726]
[1745367032070,0.00832013,93417.0,93416.0,0.16654871]
[1745367032471,0.0008514,93428.0,93425.0,0.01070377]
[1745367032680,0.0008514,93428.0,93422.0,0.01454085]
[1745367032909,0.00099196,93428.0,93422.0,0.02524496]
[1745367033115,0.00099196,93428.0,93420.0,0.08538284]
[1745367033116,0.08568292,93424.0,93420.0,0.08538284]
[1745367033329,0.20190305,93427.0,93420.0,0.08538284]
[1745367033538,0.20190305,93427.0,93421.0,0.00742772]
[1745367033780,0.20190305,93427.0,93421.0,0.01680878]
[1745367034037,0.0936,93427.0,93421.0,0.00938106]
[1745367034448,0.007,93424.0,93421.0,0.00938106]
[1745367034822,0.10830305,93423.0,93416.0,0.001]
[1745367035262,0.10830305,93423.0,93421.0,0.001]
[1745367035992,0.32238497,93423.0,93421.0,0.001]
[1745367036439,0.32338497,93423.0,93421.0,0.001]
[1745367036644,0.26099379,93417.0,93416.0,0.001]
[1745367036858,0.26099379,93417.0,93416.0,0.002]
[1745367036859,0.41599684,93417.0,93416.0,0.002]
[1745367037081,0.0936,93391.0,93373.0,0.08538284]
[1745367037285,0.10830305,93390.0,93386.0,0.03088897]
[1745367037486,0.10830305,93390.0,93374.0,0.00740149]
[1745367037870,0.10830305,93390.0,93375.0,0.00740149]
[1745367038102,0.10730305,93390.0,93375.0,0.00740149]
[1745367038283,0.10830305,93390.0,93375.0,0.0384902]
[1745367038503,0.01070824,93386.0,93375.0,0.00787022]
[1745367038714,0.10830305,93385.0,93376.0,0.00740149]
[1745367038958,0.001,93390.0,93376.0,0.00740149]
[1745367039133,0.10830305,93389.0,93376.0,0.00740149]
[1745367039307,0.10830305,93389.0,93371.0,0.29608167]
[1745367039508,0.10830305,93389.0,93375.0,0.002]
[1745367039917,0.22489298,93378.0,93375.0,0.002]
[1745367040117,0.01070881,93381.0,93375.0,0.002]
[1745367040322,0.01070904,93379.0,93375.0,0.002]
[1745367040522,0.10830305,93378.0,93375.0,0.002]
[1745367040724,0.10830305,93378.0,93371.0,0.03106762]
[1745367041156,0.10830305,93378.0,93376.0,0.001]
[1745367042039,0.10930305,93378.0,93376.0,0.001]
[1745367042247,0.10930305,93378.0,93371.0,0.03106762]
[1745367042691,0.01070927,93377.0,93371.0,0.03106762]
[1745367042915,0.10830305,93376.0,93371.0,0.03106762]
[1745367044982,0.11901243,93376.0,93371.0,0.03106762]
[1745367045196,0.01070961,93374.0,93371.0,0.03106762]
[1745367045405,0.10830305,93373.0,93371.0,0.00014034]
[1745367045871,0.26229697,93372.0,93371.0,0.00014034]
[1745367046084,0.15640305,93372.0,93371.0,0.00014034]
[1745367046939,0.15640305,93372.0,93371.0,0.00114034]
[1745367047345,0.15640305,93372.0,93371.0,0.00014034]
[1745367047547,0.15940305,93372.0,93371.0,0.00014034]
[1745367048032,0.20510305,93372.0,93371.0,0.00014034]
[1745367048278,0.41930002,93372.0,93371.0,0.00014034]
[1745367048594,0.20510305,93372.0,93371.0,0.00014034]
[1745367048796,0.003,93372.0,93371.0,0.00014034]
[1745367049039,0.012,93372.0,93371.0,0.00014034]
[1745367049629,0.003,93372.0,93371.0,0.00014034]
[1745367049973,0.006,93372.0,93371.0,0.00014034]
[1745367050213,0.007,93372.0,93371.0,0.00014034]
[1745367054807,0.007,93372.0,93371.0,0.00754725]
[1745367059841,0.007,93372.0,93371.0,0.00014034]
[1745367061858,0.11530305,93372.0,93371.0,0.00014034]
[1745367062959,0.37530002,93372.0,93371.0,0.00014034]
[1745367063166,0.16110305,93372.0,93371.0,0.00014034]
[1745367063764,0.22692349,93372.0,93371.0,0.00014034]
[1745367063972,0.16110305,93372.0,93371.0,0.00014034]
[1745367064203,0.15510305,93372.0,93371.0,0.00014034]
[1745367064410,0.15410305,93372.0,93371.0,0.00014034]
[1745367064615,0.16410305,93372.0,93371.0,0.00014034]
[1745367065201,0.15710305,93372.0,93371.0,0.00014034]
[1745367065442,0.16910305,93372.0,93371.0,0.00014034]
[1745367066514,0.16610305,93372.0,93371.0,0.00014034]
[1745367066724,0.17010305,93372.0,93371.0,0.00014034]
[1745367066921,0.17110305,93372.0,93371.0,0.00014034]
[1745367068351,0.21740305,93372.0,93371.0,0.00014034]
[1745367069173,0.62940305,93372.0,93371.0,0.00014034]
[1745367069403,0.62940305,93372.0,93351.0,0.001]
[1745367069404,0.26054057,93353.0,93351.0,0.001]
[1745367069637,0.10830305,93352.0,93351.0,0.00025594]
[1745367070581,0.15410305,93352.0,93351.0,0.00025594]
[1745367070794,0.15410305,93352.0,93351.0,0.00225594]
[1745367071219,0.15410305,93352.0,93327.0,0.0004255]
[1745367071220,0.61590305,93352.0,93327.0,0.0004255]
[1745367071456,0.61590305,93352.0,93303.0,0.04420934]
[1745367071457,0.01071501,93327.0,93303.0,0.04420934]
[1745367071684,0.0107157,93321.0,93305.0,0.004284]
[1745367071888,0.10830305,93321.0,93305.0,0.004284]
[1745367072098,0.0492,93339.0,93322.0,0.01071558]
[1745367072306,0.0482,93344.0,93317.0,0.01454085]
[1745367072516,0.0482,93344.0,93313.0,0.08538284]
[1745367072517,0.10830305,93339.0,93313.0,0.08538284]
[1745367072721,0.10830305,93339.0,93318.0,0.00745909]
[1745367072934,0.003,93321.0,93318.0,0.00745909]
[1745367073336,0.10730305,93339.0,93319.0,0.00745909]
[1745367073337,0.10830305,93339.0,93319.0,0.00745909]
[1745367073694,0.10730305,93339.0,93319.0,0.00745909]
[1745367073917,0.10830305,93339.0,93319.0,0.00745909]
[1745367074321,0.10830305,93339.0,93320.0,0.00745909]
[1745367074532,0.11130305,93339.0,93320.0,0.00745909]
[1745367074730,0.11030305,93339.0,93320.0,0.00745909]
[1745367074883,0.11030305,93339.0,93321.0,0.00745909]
[1745367074884,0.10730305,93339.0,93321.0,0.00745909]
[1745367075091,0.11230305,93339.0,93321.0,0.00745909]
[1745367075795,0.11230305,93339.0,93322.0,0.00745909]
[1745367076034,0.10830305,93339.0,93322.0,0.00745909]
[1745367076447,0.10830305,93339.0,93323.0,0.00745909]
[1745367076651,0.10930305,93339.0,93323.0,0.00745909]
[1745367076865,0.10730305,93339.0,93323.0,0.00745909]
[1745367077098,0.01071237,93350.0,93324.0,0.00214303]
[1745367077311,0.01071237,93350.0,93324.0,0.00745909]
[1745367077312,0.001,93339.0,93324.0,0.00745909]
[1745367077740,0.002,93339.0,93324.0,0.00745909]
[1745367077945,0.10830305,93338.0,93324.0,0.00745909]
[1745367078156,0.10830305,93338.0,93325.0,0.00745909]
[1745367079020,0.01071432,93333.0,93326.0,0.00745909]
[1745367079269,0.01071478,93329.0,93326.0,0.00745909]
[1745367079471,0.32260316,93328.0,93326.0,0.00745909]
[1745367079720,0.10830305,93328.0,93326.0,0.00745909]
[1745367079922,0.10830305,93328.0,93325.0,0.001]
[1745367079923,0.11901794,93328.0,93325.0,0.001]
[1745367080195,0.11901794,93328.0,93313.0,0.08238284]
[1745367080196,0.01071547,93323.0,93313.0,0.08238284]
[1745367080428,0.10830305,93322.0,93314.0,0.00823828]
[1745367080806,0.10830305,93322.0,93315.0,0.00746111]
[1745367081812,0.10730305,93322.0,93315.0,0.00746111]
[1745367082053,0.10730305,93322.0,93314.0,0.00823828]
[1745367082283,0.11032,93333.0,93314.0,0.00823828]
[1745367082504,0.10432,93333.0,93322.0,0.01071558]
[1745367082718,0.001,93338.0,93321.0,0.0474]
[1745367082904,0.003,93322.0,93321.0,0.0474]
[1745367083351,0.003,93322.0,93321.0,0.05486816]
[1745367083566,0.003,93322.0,93321.0,0.20703086]
[1745367083998,0.004,93322.0,93321.0,0.22257171]
[1745367084212,0.004,93322.0,93321.0,0.4132576]
[1745367084433,0.004,93322.0,93321.0,0.41111472]
[1745367084662,0.001,93322.0,93321.0,0.41111472]
[1745367085667,0.006,93322.0,93321.0,0.41111472]
[1745367086062,0.001,93333.0,93332.0,0.15000214]
[1745367086280,0.08568292,93359.0,93331.0,0.01454085]
[1745367086463,0.08568292,93359.0,93332.0,0.16071657]
[1745367086796,0.08568292,93359.0,93334.0,0.14999892]
[1745367087227,0.08568292,93359.0,93334.0,0.16071312]
[1745367087432,0.08568292,93359.0,93336.0,0.16070824]
[1745367087664,0.08568292,93359.0,93337.0,0.00214254]
[1745367087876,0.08568292,93359.0,93338.0,0.16070514]
[1745367088109,0.08568292,93359.0,93336.0,0.16070824]
[1745367088329,0.00114049,93344.0,93339.0,0.00746816]
[1745367088742,0.00714049,93344.0,93339.0,0.00746816]
[1745367088861,0.00714049,93344.0,93340.0,0.00746816]
[1745367089289,0.19398597,93343.0,93340.0,0.00746816]
[1745367089514,0.24228597,93343.0,93340.0,0.00746816]
[1745367090327,0.002,93343.0,93340.0,0.00846816]
[1745367090541,0.002,93343.0,93341.0,0.00961066]
[1745367090747,0.002,93343.0,93341.0,0.00746816]
[1745367091783,0.002,93343.0,93342.0,0.00746816]
[1745367092407,0.009,93343.0,93342.0,0.00746816]
[1745367092616,0.007,93343.0,93342.0,0.00961068]
[1745367092956,0.009,93343.0,93342.0,0.00746816]
[1745367093283,0.012,93343.0,93342.0,0.00846816]
[1745367093733,0.005,93343.0,93342.0,0.00846816]
[1745367094149,0.013,93343.0,93342.0,0.00946816]
[1745367099252,0.12130305,93343.0,93342.0,0.00946816]
[1745367100814,0.12130305,93343.0,93342.0,0.002]
[1745367101766,0.11330305,93343.0,93342.0,0.001]
[1745367102252,0.12030305,93343.0,93342.0,0.001]
[1745367102460,0.12430305,93343.0,93342.0,0.002]
[1745367102669,0.12430305,93343.0,93342.0,0.001]
[1745367102859,0.12430305,93343.0,93342.0,0.002]
[1745367103060,0.12830305,93343.0,93342.0,0.002]
[1745367104048,0.57740305,93343.0,93342.0,0.001]
[1745367104268,0.57740305,93343.0,93342.0,0.002]
[1745367104269,0.58640305,93343.0,93342.0,0.002]
[1745367104891,0.57740305,93343.0,93342.0,0.001]
[1745367105089,0.58140305,93343.0,93342.0,0.001]
[1745367105437,0.58640305,93343.0,93342.0,0.002]
[1745367108597,0.53830305,93343.0,93342.0,0.002]
[1745367109832,0.12630305,93343.0,93342.0,0.002]
[1745367110044,0.12844609,93343.0,93324.0,0.01071535]
[1745367110248,0.10830305,93342.0,93325.0,0.007479]
[1745367111116,0.10830305,93342.0,93326.0,0.007479]
[1745367111490,0.00214304,93341.0,93326.0,0.007479]
[1745367111688,0.11044609,93341.0,93326.0,0.007479]
[1745367112011,0.11044609,93341.0,93327.0,0.007479]
[1745367112576,0.11044609,93341.0,93328.0,0.007479]
[1745367113317,0.11144609,93341.0,93328.0,0.007479]
[1745367113971,0.10830305,93341.0,93328.0,0.007479]
[1745367114181,0.10830305,93341.0,93324.0,0.01071535]
[1745367114182,0.10830305,93341.0,93326.0,0.01071512]
[1745367114388,0.001,93343.0,93334.0,0.14999886]
[1745367114639,0.001,93343.0,93332.0,0.01071443]